fUST/lending_fUST_20240407
["ID","MTS","AMOUNT","RATE_DAILY","PERIOD"]
[321728204,1712472645588,-1500.0,0.0003,2]
[321728206,1712472645597,-1500.0,0.0003,2]
[321728208,1712472645606,-1500.0,0.0003,2]
[321728210,1712472645615,-1587.02,0.0003,2]
[321728213,1712472645625,-1500.0,0.0003,2]
[321728214,1712472645634,-1500.0,0.0003,2]
[321728217,1712472645643,-1500.0,0.0003,2]
[321728218,1712472645653,-378.08198296,0.0003,10]
[321728220,1712472645665,-1001.95764958,0.0003,4]
[321728222,1712472645674,-4188.38352906,0.0003,2]
[321728225,1712472645685,-168.29801242,0.0003,2]
[321728227,1712472645694,-104583.06624672,0.0003,7]
[321728229,1712472645703,-2818.0,0.0003,7]
[321728231,1712472645713,-618.0,0.0003,30]
[321728233,1712472645724,-500.0,0.0003,2]
[321728235,1712472645735,-245.0,0.0003,2]
[321728237,1712472645744,-190.48651693,0.0003,2]
[321728239,1712472645754,-267.50264633,0.0003,2]
[321728241,1712472645763,-570.13,0.00030018,2]
[321728243,1712472645774,-420.0,0.00030135,2]
[321728244,1712472645784,-262.67712,0.00030135,2]
[321728247,1712472645793,-1660.4696,0.00030135,2]
[321728249,1712472645803,-500.0,0.00030136,2]
[321728250,1712472645813,-247.53692112,0.00030178,2]
[321728252,1712472645822,-500.0,0.00030191,2]
[321728254,1712472645831,-153.0,0.00030219,2]
[321728256,1712472645841,-153.0,0.00030219,2]
[321728258,1712472645851,-153.0,0.00030219,2]
[321728260,1712472645860,-153.0,0.00030219,2]
[321728262,1712472645869,-153.0,0.00030219,2]
[321728264,1712472645879,-152.85199389,0.0003023,7]
[321728266,1712472645893,-500.0,0.00030239,2]
[321728268,1712472645904,-500.0,0.00030239,2]
[321728270,1712472645915,-664.24,0.00030239,2]
[321728272,1712472645925,-1280.0,0.00030239,2]
[321728274,1712472645935,-587.44,0.00030239,2]
[321728277,1712472645945,-500.0,0.00030239,2]
[321728278,1712472645954,-500.0,0.00030239,2]
[321728281,1712472645964,-500.0,0.00030239,2]
[321728282,1712472645973,-1503.77,0.00030239,2]
[321728284,1712472645982,-1155.24,0.00030239,2]
[321728286,1712472645992,-500.0,0.00030246,2]
[321728288,1712472646002,-570.13,0.00030292,2]
[321728291,1712472646012,-500.0,0.00030301,2]
[321728292,1712472646021,-500.0,0.00030356,2]
[321728294,1712472646031,-500.0,0.0003041,2]
[321728297,1712472646040,-152.85199389,0.00030437,7]
[321728299,1712472646049,-500.0,0.00030465,2]
[321728301,1712472646060,-262.67712,0.00030498,2]
[321728303,1712472646070,-1660.4696,0.00030498,2]
[321728305,1712472646079,-500.0,0.000305,2]
[321728307,1712472646088,-500.0,0.00030513,2]
[321728308,1712472646097,-500.0,0.00030513,2]
[321728311,1712472646107,-664.24,0.00030513,2]
[321728312,1712472646116,-1280.0,0.00030513,2]
[321728314,1712472646125,-587.44,0.00030513,2]
[321728316,1712472646134,-500.0,0.00030513,2]
[321728318,1712472646144,-500.0,0.00030513,2]
[321728321,1712472646154,-500.0,0.00030513,2]
[321728323,1712472646165,-1503.77,0.00030513,2]
[321728324,1712472646174,-1155.24,0.00030513,2]
[321728327,1712472646184,-500.0,0.0003052,2]
[321728329,1712472646193,-570.13,0.00030566,2]
[321728330,1712472646202,-500.0,0.00030575,2]
[321728333,1712472646212,-500.0,0.0003063,2]
[321728334,1712472646221,-159.56678118,0.00030639,7]
[321728336,1712472646231,-500.0,0.00030684,2]
[321728339,1712472646240,-5000.0,0.00030739,2]
[321728341,1712472646249,-500.0,0.00030739,2]
[321728343,1712472646259,-150.0,0.00030769,2]
[321728344,1712472646269,-500.0,0.00030787,2]
[321728346,1712472646278,-500.0,0.00030787,2]
[321728349,1712472646288,-664.24,0.00030787,2]
[321728351,1712472646297,-1280.0,0.00030787,2]
[321728353,1712472646307,-587.44,0.00030787,2]
[321728354,1712472646316,-500.0,0.00030787,2]
[321728356,1712472646326,-500.0,0.00030787,2]
[321728358,1712472646335,-500.0,0.00030787,2]
[321728361,1712472646344,-1503.77,0.00030787,2]
[321728363,1712472646354,-1155.24,0.00030787,2]
[321728364,1712472646363,-500.0,0.00030794,2]
[321728367,1712472646372,-570.13,0.0003084,2]
[321728368,1712472646382,-500.0,0.00030849,2]
[321728370,1712472646391,-500.0,0.00030904,2]
[321728372,1712472646400,-500.0,0.00030958,2]
[321728374,1712472646409,-1957.08647059,0.00031,2]
[321728376,1712472646418,-23575.31454124,0.00031,30]
[321728378,1712472646427,-2448.29321112,0.00031,5]
[321728380,1712472646437,-1000.0,0.00031,2]
[321728382,1712472646446,-1000.0,0.00031,2]
[321728384,1712472646455,-1000.0,0.00031,2]
[321728386,1712472646464,-1000.0,0.00031,2]
[321728388,1712472646474,-1002.9661568,0.00031,2]
[321728390,1712472646483,-6502.600677,0.00031,2]
[321728392,1712472646492,-481.0,0.00031,2]
[321728395,1712472646502,-500.0,0.00031,2]
[321728397,1712472646512,-507.82590092,0.00031,2]
[321728399,1712472646521,-500.0,0.00031013,2]
[321728400,1712472646530,-152.59099437,0.00031045,7]
[321728402,1712472646540,-643.18883232,0.00031061,2]
[321728404,1712472646549,-500.0,0.00031061,2]
[321728406,1712472646559,-664.24,0.00031061,2]
[321728409,1712472646569,-1280.0,0.00031061,2]
[321728411,1712472646578,-587.44,0.00031061,2]
[321728412,1712472646587,-164.72246411,0.00031061,2]
[321728414,1712472646597,-500.0,0.00031061,2]
[321728417,1712472646607,-222.65973087,0.00031061,2]
[321728419,1712472646616,-1503.77,0.00031061,2]
[321728420,1712472646625,-1155.24,0.00031061,2]
[321728422,1712472646635,-500.0,0.00031068,2]
[321728424,1712472646644,-570.13,0.00031114,2]
[321728426,1712472646653,-500.0,0.00031123,2]
[321728429,1712472646664,-500.0,0.00031178,2]
[321728430,1712472646673,-556.0,0.00031192,2]
[321728432,1712472646683,-500.0,0.00031232,2]
[321728435,1712472646693,-151.01057074,0.00031232,2]
[321728436,1712472646702,-250.50841559,0.00031232,2]
[321728439,1712472646712,-500.0,0.00031287,2]
[321728441,1712472646727,-1000.0,0.000313,2]
[321728443,1712472646736,-604.75464479,0.00031335,2]
[321728445,1712472646745,-664.24,0.00031335,2]
[321728446,1712472646754,-1280.0,0.00031335,2]
[321728448,1712472646767,-587.44,0.00031335,2]
[321728449,1712472646776,-500.0,0.00031335,2]
[321728450,1712472646787,-1503.77,0.00031335,2]
[321728451,1712472646797,-1155.24,0.00031335,2]
[321728452,1712472646805,-154.88828653,0.00031342,2]
[321728453,1712472646814,-570.13,0.00031388,2]
[321728454,1712472646824,-2000.0,0.000314,3]
[321728455,1712472646833,-251.0940719,0.00031422,2]
[321728456,1712472646842,-2000.0,0.000315,3]
[321728457,1712472646851,-500.0,0.000315,2]
[321728458,1712472646859,-2000.0,0.000315,2]
[321728459,1712472646868,-2000.0,0.0003151,2]
[321728460,1712472646877,-2000.0,0.0003152,2]
[321728461,1712472646885,-2000.0,0.0003153,2]
[321728462,1712472646894,-2000.0,0.0003154,2]
[321728463,1712472646903,-159.56678118,0.00031545,7]
[321728465,1712472646914,-3443.931616,0.0003155,2]
[321728467,1712472646923,-159.56678118,0.000316,7]
[321728469,1712472646933,-2000.0,0.000316,3]
[321728471,1712472646942,-160.0,0.00031602,3]
[321728473,1712472646951,-664.24,0.00031609,2]
[321728475,1712472646960,-177.16411649,0.00031609,2]
[321728477,1712472646969,-587.44,0.00031609,2]
[321728479,1712472646978,-500.0,0.00031609,2]
[321728481,1712472646988,-1503.77,0.00031609,2]
[321728483,1712472646998,-1155.24,0.00031609,2]
[321728486,1712472647008,-150.64069549,0.00031617,7]
[321728488,1712472647017,-152.59099437,0.00031656,7]
[321728489,1712472647026,-570.13,0.00031662,2]
[321728492,1712472647037,-2000.0,0.000317,3]
[321728493,1712472647046,-302.02114148,0.00031757,4]
[321728495,1712472647055,-160.0,0.00031759,4]
[321728497,1712472647064,-150.0,0.00031769,2]
[321728499,1712472647074,-2000.0,0.000318,3]
[321728501,1712472647083,-155.64184032,0.00031816,4]
[321728503,1712472647092,-664.24,0.00031883,2]
[321728505,1712472647101,-587.44,0.00031883,2]
[321728507,1712472647113,-500.0,0.00031883,2]
[321728510,1712472647122,-1503.77,0.00031883,2]
[321728511,1712472647132,-1155.24,0.00031883,2]
[321728513,1712472647141,-160.0,0.00031915,5]
[321728516,1712472647150,-202.70072822,0.00031933,4]
[321728517,1712472647160,-570.13,0.00031936,2]
[321728519,1712472647171,-310.0,0.00031943,4]
[321728521,1712472647180,-303.0,0.00031943,7]
[321728523,1712472647189,-302.0,0.00031943,7]
[321728525,1712472647198,-300.0,0.00031943,7]
[321728527,1712472647207,-190.88024039,0.00032,4]
[321728530,1712472647217,-155.20140212,0.00032,4]
[321728532,1712472647227,-500.0,0.00032,2]
[321728534,1712472647238,-152.85199389,0.00032049,7]
[321728536,1712472647247,-160.0,0.00032072,6]
[321728538,1712472647256,-4000.93136046,0.000321,7]
[321728539,1712472647266,-587.0,0.00032106,2]
[321728541,1712472647275,-152.85199389,0.00032144,7]
[321728543,1712472647284,-664.24,0.00032157,2]
[321728545,1712472647293,-587.44,0.00032157,2]
[321728547,1712472647302,-500.0,0.00032157,2]
[321728549,1712472647311,-1503.77,0.00032157,2]
[321728551,1712472647321,-1155.24,0.00032157,2]
[321728553,1712472647330,-74362.44121224,0.00032191,3]
[321728556,1712472647340,-100000.0,0.00032192,2]
[321728557,1712472647349,-110000.0,0.00032192,3]
[321728559,1712472647358,-570.19331566,0.0003221,2]
[321728561,1712472647368,-160.0,0.00032229,7]
[321728563,1712472647377,-152.59099437,0.00032256,7]
[321728565,1712472647387,-604.04228296,0.00032291,7]
[321728567,1712472647396,-152.59099437,0.00032375,7]
[321728569,1712472647406,-160.0,0.00032386,8]
[321728572,1712472647417,-664.24,0.00032431,2]
[321728582,1712472647508,-587.44,0.00032431,2]
[321728584,1712472647517,-500.0,0.00032431,2]
[321728586,1712472647527,-1503.77,0.00032431,2]
[321728588,1712472647537,-1155.24,0.00032431,2]
[321728591,1712472647546,-500.0,0.000325,2]
[321728593,1712472647555,-160.0,0.00032543,9]
[321728595,1712472647564,-160.0,0.00032699,10]
[321728597,1712472647574,-664.24,0.00032705,2]
[321728598,1712472647582,-587.44,0.00032705,2]
[321728600,1712472647592,-500.0,0.00032705,2]
[321728602,1712472647601,-1503.77,0.00032705,2]
[321728604,1712472647610,-1155.24,0.00032705,2]
[321728606,1712472647620,-152.59099437,0.00032708,7]
[321728608,1712472647629,-150.0,0.00032769,2]
[321728611,1712472647640,-167.00561039,0.00032834,4]
[321728613,1712472647650,-160.0,0.00032856,11]
[321728615,1712472647662,-2353.8,0.00032912,2]
[321728616,1712472647671,-2353.8,0.00032912,2]
[321728618,1712472647681,-2353.8,0.00032912,2]
[321728620,1712472647690,-2353.8,0.00032912,2]
[321728623,1712472647700,-2353.8,0.00032912,2]
[321728624,1712472647709,-2353.8,0.00032912,2]
[321728627,1712472647721,-2353.8,0.00032912,2]
[321728629,1712472647733,-2353.8,0.00032912,2]
[321728630,1712472647742,-2353.8,0.00032912,2]
[321728632,1712472647752,-2353.8,0.00032912,2]
[321728634,1712472647762,-152.59099437,0.00032952,7]
[321728637,1712472647772,-664.24,0.00032979,2]
[321728638,1712472647781,-587.44,0.00032979,2]
[321728641,1712472647791,-500.0,0.00032979,2]
[321728642,1712472647800,-1503.77,0.00032979,2]
[321728645,1712472647813,-1155.24,0.00032979,2]
[321728647,1712472647823,-152.45,0.0003299,35]
[321728649,1712472647833,-150000.0,0.00033,7]
[321728651,1712472647842,-333.98871466,0.00033,2]
[321728653,1712472647851,-245.0,0.00033,2]
[321728654,1712472647860,-245.0,0.00033,2]
[321728657,1712472647870,-160.0,0.00033013,12]
[321728659,1712472647880,-1208.08456592,0.00033109,30]
[321728661,1712472647890,-587.0,0.00033148,2]
[321728663,1712472647900,-160.0,0.0003317,13]
[321728665,1712472647909,-664.24,0.00033253,2]
[321728667,1712472647921,-587.44,0.00033253,2]
[321728668,1712472647932,-500.0,0.00033253,2]
[321728671,1712472647941,-1503.77,0.00033253,2]
[321728672,1712472647952,-1155.24,0.00033253,2]
[321728674,1712472647962,-160.0,0.00033327,14]
[321728677,1712472647971,-1755.0,0.00033453,35]
[321728679,1712472647981,-1755.0,0.00033463,35]
[321728681,1712472647990,-1755.0,0.00033473,35]
[321728683,1712472647999,-263.59,0.0003348,35]
[321728685,1712472648008,-160.0,0.00033483,15]
[321728687,1712472648018,-152.59099437,0.00033485,7]
[321728689,1712472648026,-150.5,0.0003349,35]
[321728691,1712472648035,-500.0,0.000335,2]
[321728693,1712472648044,-664.24,0.00033527,2]
[321728695,1712472648056,-587.44,0.00033527,2]
[321728697,1712472648065,-500.0,0.00033527,2]
[321728699,1712472648074,-1503.77,0.00033527,2]
[321728701,1712472648083,-1155.24,0.00033527,2]
[321728703,1712472648092,-160.0,0.0003364,16]
[321728705,1712472648102,-152.85199389,0.00033707,7]
[321728707,1712472648111,-152.59099437,0.00033726,7]
[321728708,1712472648120,-159.56678118,0.0003378,7]
[321728711,1712472648130,-160.0,0.00033797,17]
[321728713,1712472648139,-664.31779911,0.00033801,2]
[321728715,1712472648148,-587.57682209,0.00033801,2]
[321728717,1712472648157,-318.21404394,0.00033801,2]
[321728718,1712472648167,-1503.93733426,0.00033801,2]
[321728720,1712472648177,-1155.45740094,0.00033801,2]
[321728723,1712472648186,-160.0,0.00033954,18]
[321728725,1712472648195,-464.30157925,0.00034,4]
[321728727,1712472648204,-500.0,0.00034,2]
[321728729,1712472648213,-1000.0,0.00034,2]
[321728731,1712472648222,-160.0,0.0003411,19]
[321728733,1712472648231,-152.59099437,0.00034208,7]
[321728735,1712472648241,-160.0,0.00034267,20]
[321728737,1712472648250,-160.0,0.00034424,21]
[321728739,1712472648259,-500.0,0.000345,2]
[321728741,1712472648269,-160.0,0.00034581,22]
[321728743,1712472648277,-712.0,0.00034692,2]
[321728745,1712472648287,-160.0,0.00034738,23]
[321728747,1712472648296,-160.0,0.00034894,24]
[321728749,1712472648305,-152.85199389,0.00034913,7]
[321728750,1712472648314,-152.59099437,0.0003499,7]
[321728752,1712472648323,-595.7272905,0.00035,2]
[321728755,1712472648332,-6926.47481526,0.00035,4]
[321728756,1712472648341,-154.9690062,0.00035,4]
[321728758,1712472648350,-157.82044105,0.00035,30]
[321728760,1712472648359,-7776.84055601,0.00035,2]
[321728762,1712472648368,-816.35850045,0.00035,120]
[321728764,1712472648378,-175.81760816,0.00035,30]
[321728766,1712472648387,-23614.02159112,0.00035,7]
[321728768,1712472648396,-228.7992506,0.00035,31]
[321728770,1712472648406,-500.0,0.00035,2]
[321728772,1712472648417,-160.0,0.00035051,25]
[321728775,1712472648427,-738.086757,0.000351,2]
[321728777,1712472648436,-247.53692112,0.00035178,2]
[321728779,1712472648446,-160.0,0.00035208,26]
[321728781,1712472648455,-152.85199389,0.00035281,7]
[321728783,1712472648464,-160.0,0.00035365,27]
[321728785,1712472648474,-500.0,0.000355,2]
[321728787,1712472648483,-160.0,0.00035522,28]
[321728789,1712472648492,-579.58,0.00035616,2]
[321728791,1712472648500,-579.58,0.00035616,2]
[321728793,1712472648510,-579.58,0.00035616,2]
[321728795,1712472648519,-579.58,0.00035616,2]
[321728797,1712472648527,-579.58,0.00035616,2]
[321728799,1712472648536,-579.58,0.00035616,2]
[321728801,1712472648546,-579.58,0.00035616,2]
[321728802,1712472648555,-579.58,0.00035616,2]
[321728804,1712472648564,-579.58,0.00035616,2]
[321728807,1712472648574,-579.58,0.00035616,2]
[321728809,1712472648583,-579.58,0.00035616,2]
[321728811,1712472648592,-579.58,0.00035616,2]
[321728813,1712472648601,-579.58,0.00035616,2]
[321728815,1712472648610,-579.58,0.00035616,2]
[321728817,1712472648619,-579.58,0.00035616,2]
[321728819,1712472648628,-579.58,0.00035616,2]
[321728821,1712472648638,-579.58,0.00035616,2]
[321728822,1712472648647,-579.58,0.00035616,2]
[321728824,1712472648656,-579.58,0.00035616,2]
[321728826,1712472648667,-579.58,0.00035616,2]
[321728828,1712472648676,-579.58,0.00035616,2]
[321728831,1712472648686,-579.58,0.00035616,2]
[321728833,1712472648695,-579.58,0.00035616,2]
[321728834,1712472648704,-579.67253247,0.00035616,2]
[321728837,1712472648714,-160.0,0.00035678,29]
[321728839,1712472648726,-206.47113453,0.00035678,5]
[321728840,1712472648735,-152.85199389,0.00035871,7]
[321728842,1712472648744,-500.0,0.00036,2]
[321728844,1712472648753,-245.0,0.00036,2]
[321728847,1712472648764,-245.0,0.00036,2]
[321728849,1712472648773,-245.0,0.00036,2]
[321728851,1712472648783,-159.56678118,0.00036108,7]
[321728853,1712472648791,-249.930012,0.00036164,2]
[321728854,1712472648802,-166.783313,0.00036164,2]
[321728857,1712472648812,-255.49243391,0.0003624,2]
[321728859,1712472648822,-152.59099437,0.00036273,7]
[321728861,1712472648831,-152.85199389,0.00036337,7]
[321728863,1712472648840,-823.0,0.00036463,2]
[321728865,1712472648849,-152.59099437,0.0003663,7]
[321728867,1712472648858,-152.85199389,0.00037336,7]
[321728868,1712472648867,-10149.34971691,0.000375,2]
[321728870,1712472648877,-152.59099437,0.00037512,7]
[321728872,1712472648886,-152.59099437,0.00037624,7]
[321728875,1712472648896,-5000.0,0.000379,2]
[321728877,1712472648906,-1437.0,0.00038,2]
[321728879,1712472648916,-1098.77286124,0.00038,12]
[321728880,1712472648926,-152.85199389,0.00038034,7]
[321728883,1712472648936,-1643.38335825,0.000385,2]
[321728885,1712472648945,-152.85199389,0.000385,7]
[321728886,1712472648954,-50003.36027831,0.0003859,2]
[321728888,1712472648964,-750.7539,0.00038771,30]
[321728891,1712472648974,-1000.0,0.000388,12]
[321728893,1712472648983,-1000.0,0.000388,12]
[321728895,1712472648992,-1000.0,0.000388,12]
[321728897,1712472649001,-1000.0,0.000388,12]
[321728899,1712472649010,-1000.0,0.000388,12]
[321728901,1712472649019,-1000.0,0.000388,12]
[321728903,1712472649032,-152.59099437,0.00038993,7]
[321728905,1712472649041,-159.56678118,0.00038994,7]
[321728907,1712472649050,-170978.7077824,0.00039,30]
[321728909,1712472649059,-245.0,0.00039,2]
[321728911,1712472649068,-245.0,0.00039,2]
[321728913,1712472649077,-155.0,0.000391,120]
[321728915,1712472649086,-152.59099437,0.00039577,7]
[321728917,1712472649095,-159.56678118,0.00039752,7]
[321728919,1712472649104,-5000.0,0.000399,4]
[321728921,1712472649113,-159.56678118,0.00039914,7]
[321728923,1712472649122,-3563.31244923,0.0004,4]
[321728925,1712472649132,-993.00721362,0.0004,30]
[321728927,1712472649141,-155.33213655,0.0004,2]
[321728929,1712472649150,-25432.87427166,0.0004,2]
[321728931,1712472649159,-2380.24,0.0004,2]
[321728933,1712472649168,-204.74759909,0.0004,2]
[321728935,1712472649178,-7453.62169458,0.0004,2]
[321728937,1712472649187,-4988.0,0.0004,2]
[321728939,1712472649197,-4791.50280204,0.0004,2]
[321728941,1712472649206,-326.0,0.0004,60]
[321728943,1712472649233,-443.529689,0.0004,120]
[321728944,1712472649242,-10980.8153589,0.0004,30]
[321728945,1712472649251,-3313.07348129,0.0004,10]
[321728946,1712472649260,-407.0,0.0004,2]
[321728948,1712472649269,-501.47597267,0.0004,2]
[321728950,1712472649278,-333.267916,0.0004,2]
[321728952,1712472649287,-2416.16913184,0.00040103,120]
[321728954,1712472649296,-1152.0,0.00040109,3]
[321728957,1712472649306,-102022.72430294,0.0004013,2]
[321728959,1712472649315,-341820.90186,0.00040555,2]
[321728962,1712472649333,-152.85199389,0.00040674,30]
[321728964,1712472649344,-4963.0583,0.00040771,30]
[321728966,1712472649354,-225000.0,0.000409,30]
[321728968,1712472649363,-1775.7,0.00041,2]
[321728970,1712472649372,-2000.0,0.00041,2]
[321728972,1712472649381,-188.3807646,0.00041,2]
[321728974,1712472649391,-1060.13848245,0.00041,4]
[321728976,1712472649400,-2000.0,0.00041,30]
[321728978,1712472649409,-2586.049289,0.0004101,30]
[321728980,1712472649419,-152.85199389,0.0004109,30]
[321728982,1712472649428,-397.5175713,0.00041095,120]
[321728984,1712472649437,-166.666666,0.00041096,2]
[321728986,1712472649447,-500.0,0.00041096,31]
[321728988,1712472649456,-500.0,0.00041096,31]
[321728990,1712472649466,-500.0,0.00041096,31]
[321728992,1712472649475,-500.0,0.00041096,31]
[321728994,1712472649484,-556.82144165,0.00041096,31]
[321728996,1712472649494,-500.0,0.00041096,31]
[321728998,1712472649503,-500.0,0.00041096,31]
[321729000,1712472649513,-500.0,0.00041096,31]
[321729002,1712472649522,-500.0,0.00041096,31]
[321729004,1712472649532,-500.0,0.00041096,31]
[321729006,1712472649541,-500.0,0.00041096,31]
[321729008,1712472649551,-500.0,0.00041096,31]
[321729010,1712472649560,-500.0,0.00041096,31]
[321729012,1712472649569,-500.0,0.00041096,31]
[321729014,1712472649578,-500.0,0.00041096,31]
[321729016,1712472649587,-500.0,0.00041096,31]
[321729018,1712472649597,-500.0,0.00041096,31]
[321729020,1712472649606,-500.0,0.00041096,31]
[321729022,1712472649615,-500.0,0.00041096,31]
[321729024,1712472649624,-500.0,0.00041096,31]
[321729026,1712472649634,-524.35204642,0.00041096,31]
[321729028,1712472649643,-500.0,0.00041096,31]
[321729030,1712472649652,-500.0,0.00041096,31]
[321729032,1712472649662,-500.0,0.00041096,31]
[321729034,1712472649671,-500.0,0.00041096,31]
[321729036,1712472649680,-500.0,0.00041096,31]
[321729038,1712472649689,-500.0,0.00041096,31]
[321729040,1712472649698,-250.0,0.00041096,31]
[321729042,1712472649708,-500.0,0.00041096,31]
[321729044,1712472649717,-500.0,0.00041096,31]
[321729046,1712472649730,-250.0,0.00041096,31]
[321729048,1712472649740,-5715.79247738,0.000414,2]
[321729050,1712472649749,-159.56678122,0.00041422,30]
[321729052,1712472649759,-249.930012,0.00041471,2]
[321729055,1712472649768,-813.0,0.00042,14]
[321729057,1712472649779,-245.0,0.00042,2]
[321729059,1712472649788,-166.666666,0.00042058,2]
[321729061,1712472649798,-200.0,0.00042202,120]
[321729063,1712472649808,-1755.0,0.0004237,35]
[321729065,1712472649818,-1755.0,0.0004238,35]
[321729067,1712472649827,-1755.0,0.0004239,35]
[321729069,1712472649836,-1629.8903344,0.000424,120]
[321729071,1712472649846,-1400.14937621,0.00042402,4]
[321729073,1712472649855,-150.0,0.00042411,2]
[321729075,1712472649864,-1187.65529285,0.00042411,14]
[321729077,1712472649874,-304.98422007,0.00042411,3]
[321729079,1712472649884,-805.18506264,0.00042411,2]
[321729081,1712472649893,-197294.8960348,0.00042411,2]
[321729083,1712472649902,-300.0,0.00042411,2]
[321729085,1712472649912,-778.8653231,0.00042411,2]
[321729087,1712472649921,-982027.82118823,0.00042411,60]
[321729089,1712472649932,-285.59873863,0.00042411,2]
[321729091,1712472649941,-18460.8792605,0.00042411,2]
[321729093,1712472649950,-4075.14760598,0.00042411,2]
[321729095,1712472649958,-314.52492435,0.00042411,2]
[321729097,1712472649967,-280.26801975,0.00042411,2]
[321729099,1712472649977,-9909.9444524,0.00042411,2]
[321729101,1712472649986,-2699.64919841,0.00042411,2]
[321729103,1712472649995,-151.53169517,0.00042411,2]
[321729105,1712472650005,-1000.50989724,0.00042411,2]
[321729107,1712472650014,-429.42886108,0.00042411,2]
[321729109,1712472650024,-28512.02304963,0.00042411,2]
[321729111,1712472650035,-1004.22861106,0.00042411,2]
[321729113,1712472650045,-178.55419946,0.00042411,30]
[321729115,1712472650055,-51091.93897952,0.00042411,120]
[321729117,1712472650064,-16438.025458,0.00042411,2]
[321729120,1712472650074,-87684.3866919,0.00042411,2]
[321729122,1712472650083,-1024.7045663,0.00042411,2]
[321729124,1712472650093,-858.42869581,0.00042411,2]
[321729126,1712472650102,-573.65645601,0.00042411,2]
[321729128,1712472650112,-2860.65604492,0.00042411,3]
[321729130,1712472650122,-135640.20393063,0.00042411,2]
[321729132,1712472650132,-900.0,0.00042411,30]
[321729134,1712472650141,-16131.91052572,0.00042411,2]
[321729136,1712472650151,-54137.94202785,0.00042411,2]
[321729138,1712472650160,-27835.26515207,0.00042411,2]
[321729140,1712472650171,-1000.74711547,0.00042411,2]
[321729142,1712472650181,-7765.13411339,0.00042411,2]
[321729144,1712472650190,-64486.4347546,0.00042411,30]
[321729146,1712472650200,-903.0,0.00042411,30]
[321729148,1712472650209,-903.0,0.00042411,30]
[321729150,1712472650219,-1017.51870832,0.00042411,30]
[321729153,1712472650229,-1711.92147622,0.00042411,30]
[321729155,1712472650238,-6336.53888863,0.00042411,4]
[321729157,1712472650248,-1143.31402052,0.00042411,120]
[321729159,1712472650257,-974.14735689,0.00042411,2]
[321729161,1712472650267,-545.2471105,0.000425,30]
[321729163,1712472650276,-2000.0,0.000428,10]
[321729165,1712472650286,-12015.33838588,0.000428,30]
[321729167,1712472650298,-152.59099437,0.00042823,30]
[321729169,1712472650307,-157.95655697,0.00042855,30]
[321729171,1712472650317,-299.00133078,0.00042898,4]
[321729173,1712472650326,-192.83927752,0.00042898,4]
[321729176,1712472650336,-184.99112602,0.00042898,4]
[321729178,1712472650345,-154.98450155,0.00042898,7]
[321729180,1712472650355,-299.86293489,0.00042898,4]
[321729182,1712472650364,-2000.0,0.000429,10]
[321729184,1712472650373,-1500.0,0.00043,3]
[321729186,1712472650383,-2000.0,0.00043,10]
[321729188,1712472650392,-400.0,0.00043,2]
[321729190,1712472650402,-2200.0,0.00043,120]
[321729192,1712472650412,-1608.48501951,0.00043,2]
[321729194,1712472650421,-1000.0,0.00043,12]
[321729196,1712472650430,-1000.0,0.00043,12]
[321729198,1712472650440,-3845.02517796,0.00043,15]
[321729200,1712472650450,-179.70500436,0.00043,60]